[Event "13th KIIT Festival-A 2022"]
[Site "Bhubaneswar"]
[Date "2022.05.24"]
[Round "3.16"]
[White "Rohith Krishna S"]
[Black "Bagwe Gaurang"]
[Result "1-0"]
[ECO "D18"]
[WhiteElo "2337"]
[BlackElo "1789"]
[Annotator "TA"]
[PlyCount "129"]
[EventDate "2022.05.15"]
[EventType "swiss"]
[EventCountry "IND"]
[SourceTitle "playchess.com"]
[Source "ChessBase"]
[SourceQuality "1"]
[TimeControl "5400+30"]

{[%evp 13,128,22,25,8,29,24,34,41,47,25,47,39,56,22,58,60,92,91,106,87,92,88,79,85,60,62,71,63,56,56,69,22,92,89,101,100,123,112,140,130,147,135,133,58,278,262,433,332,568,532,533,522,473,529,522,513,505,481,459,296,293,285,274,281,261,223,223,223,223,216,211,150,150,150,150,147,195,191,343,358,340,345,376,377,354,255,402,402,552,552,547,541,543,534,4471,4471,1929,1929,29956,29958,1902,1361,1361,1232,12718,12718,29992,29993,29993,29973,29996,29997,29997,29994,29998,29999,29999]} 1. d4 {[%emt 0:00:23]} d5 {[%emt 0:00:19]} 2. c4 {[%emt 0:00:07]} c6 {[%emt 0:00:03]} 3. Nc3 {[%emt 0:00:15]} Nf6 {[%emt 0:00:04]} 4. Nf3 {[%emt 0:00:07]} dxc4 {[%emt 0:00:03]} 5. a4 {[%emt 0:00:09]} Bf5 {[%emt 0:00:04]} 6. e3 {[%emt 0:02:06]} e6 {[%emt 0:00:22]} 7. Bxc4 {[%emt 0:00:58]} Nbd7 {[%emt 0:00:13]} 8. a5 {[%emt 0:03:43] D18: Slav Defence: 5 a4 Bf5 6 e3.} Bb4 {[%emt 0:01:12]} 9. Qb3 {[%emt 0:07:22]} Bxa5 {[%emt 0:03:39]} 10. Qxb7 {[%emt 0:00:35][%cal Oa1a5] [#] Threatens to win with Rxa5! White is slightly better.} O-O {[%emt 0:02:27]} 11. O-O {[%emt 0:04:36] [#]} Qc7 $146 {[%emt 0:11:49]} ({Predecessor:} 11... c5 12. Qa6 Bc7 13. Nb5 Bb6 14. b3 Qb8 15. Bb2 Be4 16. Ne5 Bb7 17. Qa2 a6 18. Nxd7 Nxd7 {0-1 (30) Dolezal,C (2426)-Cuberli,E (2248) Buenos Aires 2017}) 12. Qa6 {[%emt 0:02:38]} Bb4 {[%emt 0:01:43]} 13. h3 {[%emt 0:00:22]} Rfe8 {[%emt 0:07:31]} 14. Bd2 {[%emt 0:05:14][%cal Oe3e4]} Bd6 {[%emt 0:09:57]} 15. Rfc1 {[%emt 0:06:43]} Rab8 {[%emt 0:00:36]} 16. b3 {[%emt 0:01:21]} Rb7 {[%emt 0:02:45]} 17. Be1 {[%emt 0:15:00]} Nb8 {[%emt 0:09:11]} 18. Qa2 {[%emt 0:00:16]} Qe7 {[%emt 0:01:45]} 19. Qe2 {[%emt 0:04:36]} Ne4 {[%emt 0:02:16]} 20. Nxe4 {[%emt 0:01:25]} Bxe4 {[%emt 0:00:02]} 21. Nd2 {[%emt 0:00:05]} Bg6 {[%emt 0:00:22]} 22. e4 {[%emt 0:02:15]} (22. Ba6 $14 Nxa6 23. Qxa6) 22... Bf4 {[%emt 0:02:50]} (22... e5 $11 {remains equal.}) 23. g3 $16 {[%emt 0:02:28]} Bxd2 {[%emt 0:01:39]} 24. Bxd2 {[%emt 0:00:05]} Qd7 {[%emt 0:00:09]} 25. Bc3 {[%emt 0:02:19]} e5 {[%emt 0:01:29]} 26. dxe5 {[%emt 0:00:57] [#] aiming for Kh2.} Qxh3 {[%emt 0:00:08]} 27. Qe3 {[%emt 0:04:57]} Nd7 {[%emt 0:01:59]} 28. f4 {[%emt 0:03:16]} (28. Ra5 $16) 28... h6 $2 {[%emt 0:06:28] Black cannot hold the game after this.} ({Better is} 28... Nf6 $1 $14 29. Bf1 (29. exf6 Bxe4 30. Kf2 Qg2+ 31. Ke1 Rd7 $11) 29... Qh2+ 30. Kxh2 Ng4+ 31. Kg1 Nxe3) 29. Ra2 $18 {[%emt 0:02:26][%cal Ba1a2,Ba2h2,Bh2h4][%mdl 32] Active counter play!} Nf8 $2 {[%emt 0:03:00]} (29... Nb6 30. Ba6 Rd7) 30. f5 {[%emt 0:01:24]} Bh7 $2 {[%emt 0:07:06]} (30... Bxf5 31. exf5 Qxf5) 31. Rh2 {[%emt 0:06:55]} Qg4 {[%emt 0:00:01]} 32. Rh4 {[%emt 0:00:18]} Qg5 {[%emt 0:00:04]} 33. Qxg5 {[%emt 0:00:04]} hxg5 {[%emt 0:00:04]} 34. Rh5 {[%emt 0:00:08]} Nd7 {[%emt 0:01:30]} 35. e6 {[%emt 0:01:59]} fxe6 {[%emt 0:00:09]} 36. Bxe6+ {[%emt 0:00:04]} Rxe6 {[%emt 0:00:18]} 37. fxe6 {[%emt 0:00:05]} Nf8 {[%emt 0:04:43]} 38. e7 {[%emt 0:03:09]} Rxe7 {[%emt 0:00:33]} 39. Bb4 {[%emt 0:00:04]} Re8 {[%emt 0:04:01]} 40. Bxf8 {[%emt 0:04:33]} Rxf8 {[%emt 0:00:01]} 41. Rxc6 {[%emt 0:00:08]} Bxe4 {[%emt 0:00:27][%mdl 4096] Endgame KRR-KRB} 42. Rc7 {[%emt 0:00:11]} Rf5 {[%emt 0:01:21]} 43. Rxa7 {[%emt 0:00:10]} Rb5 {[%emt 0:00:12]} 44. Ra3 {[%emt 0:00:22]} Bf3 {[%emt 0:01:35]} (44... Bc2 $16 45. Rh2 Bxb3) 45. Rh2 {[%emt 0:00:12][%cal Ob3b4]} g4 $2 {[%emt 0:00:10]} (45... Rd5 46. Ra8+ Kf7) 46. Rb2 {[%emt 0:00:07]} Rh5 {[%emt 0:00:07] White must now prevent ...Rh1+.} 47. Rd2 {[%emt 0:01:03]} Rh1+ {[%emt 0:00:58]} 48. Kf2 {[%emt 0:00:18]} Rb1 {[%emt 0:01:43]} 49. Ke3 {[%emt 0:00:10]} Kf7 {[%emt 0:03:02]} (49... Re1+ {was worth a try.} 50. Kf2 Rb1) 50. Kf4 {[%emt 0:01:44]} Re1 {[%emt 0:00:46]} 51. Ra7+ {[%emt 0:00:12]} Ke6 {[%emt 0:00:07]} 52. Rd4 {[%emt 0:01:47] Inhibits Re4+. Hoping for Ra6+.} Rf1 {[%emt 0:05:24]} 53. Ra6+ {[%emt 0:03:22]} Ke7 {[%emt 0:00:38]} 54. Ke5 {[%emt 0:00:35] Strongly threatening Ra7+.} Re1+ {[%emt 0:02:20]} 55. Kf5 {[%emt 0:00:06] Ra7+ is the strong threat.} Kf8 {[%emt 0:01:03]} 56. Re6 {[%emt 0:04:45]} Rh1 {[%emt 0:01:28]} 57. Rd8+ {[%emt 0:00:39]} Kf7 {[%emt 0:00:01]} 58. Rd7+ {[%emt 0:00:06]} Kf8 {[%emt 0:01:08]} 59. Kg5 {[%emt 0:00:32] Rd8+ would kill now.} Rh3 {[%emt 0:00:27]} 60. Rb6 {[%emt 0:00:05][%cal Rb6b8] White mates.} Kg8 {[%emt 0:00:30]} 61. Rg6 {[%emt 0:00:24]} Rxg3 {[%emt 0:01:29]} 62. Rgxg7+ {[%emt 0:00:07]} Kf8 {[%emt 0:00:10]} 63. Rdf7+ {[%emt 0:00:13]} Ke8 {[%emt 0:00:09]} 64. Kf6 {[%emt 0:00:04][%cal Rg7g8]} Bd5 {[%emt 0:00:48]} 65. Rg8# {[%emt 0:00:07] Weighted Error Value: White=0.16 (very precise) /Black=0.57} 1-0

[Event "13th KIIT Festival-A 2022"]
[Site "Bhubaneswar"]
[Date "2022.05.24"]
[Round "3.17"]
[White "Ashvath Mittal"]
[Black "Konguvel, Ponnuswamy"]
[Result "0-1"]
[ECO "B76"]
[WhiteElo "1419"]
[BlackElo "2331"]
[Annotator "TA"]
[PlyCount "60"]
[EventDate "2022.05.15"]
[EventType "swiss"]
[EventCountry "IND"]
[SourceTitle "playchess.com"]
[Source "ChessBase"]
[SourceQuality "1"]
[TimeControl "5400+30"]

{[%evp 16,60,22,16,21,-21,-27,-25,-14,-17,-16,-44,-37,-75,-61,-70,-62,-69,-71,-79,-81,-94,-81,-117,-114,-150,-122,-157,-152,-219,-138,-253,-206,-227,-219,-698,-166,-213,-198,-197,-186,-196,-172,-204,-212,-244,-239]} 1. e4 {[%emt 0:00:02]} c5 {[%emt 0:00:24]} 2. Nf3 {[%emt 0:00:04]} Nc6 {[%emt 0:01:13]} 3. d4 {[%emt 0:00:04]} cxd4 {[%emt 0:00:05]} 4. Nxd4 {[%emt 0:00:04]} g6 {[%emt 0:03:23]} 5. Nc3 {[%emt 0:00:09]} Bg7 {[%emt 0:00:12]} 6. Be3 {[%emt 0:00:05]} Nf6 {[%emt 0:00:10]} 7. f3 {[%emt 0:00:08]} O-O {[%emt 0:01:15]} 8. Nb3 {[%emt 0:00:12]} d6 {[%emt 0:03:52]} 9. Qd2 {[%emt 0:00:16]} a6 {[%emt 0:11:45] B76: Sicilian Dragon: Yugoslav Attack, 9 g4 and 9 0-0-0.} 10. a4 {[%emt 0:03:37]} Be6 {[%emt 0:04:53] [#]} 11. Nd4 $146 {[%emt 0:11:31]} ({Predecessor:} 11. Nd5 Bxd5 12. exd5 Ne5 13. a5 Rc8 14. Ra4 Qd7 15. Rb4 e6 16. c4 exd5 17. cxd5 {0-1 (39) Pasalic,E (2053)-Fercec,N (2487) Porec 2007}) 11... Nxd4 {[%emt 0:05:59] Black has an edge.} 12. Bxd4 {[%emt 0:00:09]} Rc8 {[%emt 0:00:05]} 13. g4 {[%emt 0:10:06]} Qa5 {[%emt 0:04:16]} 14. Ne2 {[%emt 0:08:17]} Qxd2+ {[%emt 0:13:30]} 15. Kxd2 {[%emt 0:00:05]} d5 {[%emt 0:00:14]} 16. g5 {[%emt 0:06:22]} Nd7 {[%emt 0:01:58][%cal Bf6d7,Bd7c5,Bc5e4][%mdl 32]} 17. c3 {[%emt 0:10:14]} dxe4 {[%emt 0:06:36]} 18. fxe4 {[%emt 0:01:26]} Nc5 $36 {[%emt 0:05:03][%mdl 2048] Keeping White busy.} 19. Ke3 {[%emt 0:00:57]} Bd7 {[%emt 0:04:11] Black is more active.} 20. a5 {[%emt 0:15:21] [#]} Nxe4 $1 {[%emt 0:00:59][%mdl 512]} 21. Bg2 {[%emt 0:01:44]} (21. Kxe4 Bc6+) 21... Nd6 {[%emt 0:00:52]} ({Inferior is} 21... Nxg5 22. Bxg7 Kxg7 23. h4 $15) 22. Rhd1 {[%emt 0:02:21]} (22. Kf2 $17) 22... Bc6 {[%emt 0:02:08]} 23. Bh3 {[%emt 0:01:12]} (23. Bxc6 $17 {keeps fighting.} Rxc6 24. Kd3) 23... Rcd8 {[%emt 0:02:09] aiming for ...Nc4+.} 24. b3 {[%emt 0:01:49]} Ne4 {[%emt 0:03:51]} 25. Rg1 {[%emt 0:04:43]} (25. Bxg7 Kxg7 26. Bg2 Nxg5 27. Bxc6 bxc6 28. Nf4) 25... Bxd4+ $2 {[%emt 0:07:39]} (25... e5 26. Bb6 {[#]} f5 $1 27. Bxd8 f4+ 28. Kf3 Nxg5+ 29. Kg4 Nf3) 26. cxd4 {[%emt 0:00:09]} (26. Nxd4 $142 Nxc3 27. Nxc6 bxc6 28. Bf1) 26... Nd6 {[%emt 0:00:13]} 27. Rad1 {[%emt 0:03:36]} Bd7 {[%emt 0:04:05]} 28. Bg2 {[%emt 0:03:01]} Bg4 {[%emt 0:01:38]} 29. d5 {[%emt 0:02:23]} Rc8 {[%emt 0:00:05]} 30. Rc1 {[%emt 0:00:41]} Nf5+ {[%emt 0:00:17] White got outplayed after the opening.  Weighted Error Value: White=0.44/Black=0.41} 0-1

[Event "13th KIIT Festival-A 2022"]
[Site "Bhubaneswar"]
[Date "2022.05.24"]
[Round "3.18"]
[White "Karthikeyan, P.."]
[Black "Harini, S.."]
[Result "1/2-1/2"]
[ECO "C92"]
[WhiteElo "2361"]
[BlackElo "2021"]
[Annotator "TA"]
[PlyCount "31"]
[EventDate "2022.05.15"]
[EventType "swiss"]
[EventCountry "IND"]
[SourceTitle "playchess.com"]
[Source "ChessBase"]
[SourceQuality "1"]
[TimeControl "5400+30"]

{[%evp 30,31,26,0]} 1. e4 {[%emt 0:00:03]} e5 {[%emt 0:00:16]} 2. Nf3 {[%emt 0:00:07]} Nc6 {[%emt 0:00:12]} 3. Bb5 {[%emt 0:00:06][%cal Bf1b5,Bb5a4,Ba4b3][%mdl 32]} a6 {[%emt 0:00:15]} 4. Ba4 {[%emt 0:00:04]} Nf6 {[%emt 0:00:20]} 5. O-O {[%emt 0:00:16]} Be7 {[%emt 0:00:15]} 6. Re1 {[%emt 0:00:06]} b5 {[%emt 0:00:13]} 7. Bb3 {[%emt 0:00:05]} d6 {[%emt 0:00:17]} 8. c3 {[%emt 0:00:04]} O-O {[%emt 0:00:26]} 9. h3 {[%emt 0:00:04]} Bb7 {[%emt 0:00:22]} 10. d4 {[%emt 0:00:07]} Re8 {[%emt 0:00:25] [#]} 11. Ng5 $146 {[%emt 0:00:10]} ({Predecessor:} 11. Nbd2 Bf8 12. a4 exd4 13. cxd4 Na5 14. Bc2 b4 15. b3 g6 16. Bb2 d5 17. e5 Nh5 18. Nf1 Rc8 19. Ne3 c5 20. dxc5 Rxc5 21. Ng4 Nc6 22. Qd2 d4 {1-0 (65) Giri,A (2772)-Le,Q (2709) chess24.com INT 2022}) 11... Rf8 {[%emt 0:00:12]} 12. Nf3 {[%emt 0:00:29]} Re8 {[%emt 0:00:10]} 13. Ng5 {[%emt 0:00:20]} Rf8 {[%emt 0:00:23]} 14. Nf3 {[%emt 0:00:05]} Re8 {[%emt 0:00:10]} 15. Ng5 {[%emt 0:00:11]} Rf8 {[%emt 0:00:07]} 16. Nf3 {[%emt 0:00:32] 16.Nf3 was played by the boomers.} 1/2-1/2

[Event "13th KIIT Festival-A 2022"]
[Site "Bhubaneswar"]
[Date "2022.05.24"]
[Round "3.19"]
[White "Arpita, Mukherjee"]
[Black "Velpula Sarayu"]
[Result "1/2-1/2"]
[ECO "A45"]
[WhiteElo "2275"]
[BlackElo "1845"]
[Annotator "TA"]
[PlyCount "148"]
[EventDate "2022.05.15"]
[EventType "swiss"]
[EventCountry "IND"]
[SourceTitle "playchess.com"]
[Source "ChessBase"]
[SourceQuality "1"]
[TimeControl "5400+30"]

{[%evp 9,148,0,0,0,11,0,0,0,3,0,0,0,0,-42,20,23,22,-15,0,0,30,35,49,57,73,10,33,4,81,71,93,0,0,10,14,0,19,8,23,-39,0,0,0,0,0,0,13,0,0,0,110,-219,-202,-208,-206,-191,-29,-35,-10,-47,0,0,35,23,130,129,116,71,71,59,59,59,59,58,59,59,63,64,64,59,59,59,59,14,23,14,14,14,14,14,14,14,14,14,14,14,15,14,14,14,23,23,23,23,24,23,23,14,23,14,23,14,23,14,23,23,23,0,0,0,0,0,0,0,0,0,0,0,0,0,0,0,0,0,0,0,0,0,0,0,0]} 1. d4 {[%emt 0:06:40]} Nf6 {[%emt 0:00:09]} 2. Bf4 {[%emt 0:00:14]} g6 {[%emt 0:00:17]} 3. Nc3 {[%emt 0:00:10]} d5 {[%emt 0:00:19]} 4. e3 {[%emt 0:00:36]} Bg7 {[%emt 0:00:15]} 5. h4 {[%emt 0:00:18]} h5 {[%emt 0:00:12]} 6. Nf3 {[%emt 0:00:35] A45: Trompowsky Attack.} O-O {[%emt 0:00:16][%cal Oc7c5]} 7. Be2 {[%emt 0:00:13]} c5 {[%emt 0:01:00]} 8. dxc5 {[%emt 0:00:26]} Qa5 {[%emt 0:00:30]} 9. O-O {[%emt 0:00:29]} Qxc5 {[%emt 0:00:49]} 10. Nb5 {[%emt 0:00:14][%cal Bc3b5,Bb5d4,Bd4b3][%mdl 32]} a6 {[%emt 0:01:04] [#]} 11. Nbd4 $146 {[%emt 0:10:29]} (11. Nc7 $5 {[%cal Rc7a8]} Ra7 12. a3 $11) ({Predecessor:} 11. Nc7 Ra7 12. Nb5 axb5 13. Bxb8 Ra8 14. Be5 b4 15. Bd4 Qa5 16. c3 Bg4 17. Qb3 bxc3 18. Bxc3 {½-½ (42) Naiditsch,A (2702)-Carlsen,M (2838) Karlsruhe/Baden-Baden 2017}) 11... Ng4 {[%emt 0:12:14]} (11... Bg4 $15) 12. Nb3 $11 {[%emt 0:08:26]} Qc6 {[%emt 0:02:21]} 13. c3 {[%emt 0:08:21][%cal Bc2c3,Bc3c4][%mdl 32]} (13. c4 $5) 13... e5 {[%emt 0:09:48]} 14. Bg3 {[%emt 0:10:20]} Rd8 {[%emt 0:02:56]} 15. c4 {[%emt 0:01:35]} d4 {[%emt 0:09:36]} 16. exd4 {[%emt 0:05:12]} exd4 {[%emt 0:00:15][%cal Od4d3]} 17. Bd3 {[%emt 0:00:28]} (17. Nbxd4 Bxd4 18. Nxd4 Qf6 $11) ({White should try} 17. Ng5 $1 $16) 17... Qf6 {[%emt 0:06:04]} 18. Nc5 {[%emt 0:07:11]} Qb6 {[%emt 0:06:01]} (18... Nd7 $11 19. Ne4 Qc6) 19. Na4 $16 {[%emt 0:06:15]} Qc6 {[%emt 0:10:06]} 20. Re1 {[%emt 0:05:17]} ({Better is} 20. c5 $16 {Strongly threatening Nb6.} Nd7 21. Re1) 20... Bf5 $1 $11 {[%emt 0:09:44]} 21. Bxf5 {[%emt 0:08:18]} gxf5 {[%emt 0:00:10]} 22. Ne5 {[%emt 0:00:53]} Bxe5 {[%emt 0:06:14]} 23. Bxe5 {[%emt 0:03:35][%cal Od1d2]} Nd7 {[%emt 0:02:04]} (23... Re8 $2 24. Bxd4 Nd7 25. Qd2 $1 $16 (25. Rxe8+ Rxe8 26. f3 Ne3 $16)) 24. Bf4 {[%emt 0:02:21]} (24. Bxd4 $11 Nf8 25. f3) 24... b5 {[%emt 0:08:28]} (24... Qxc4 25. Rc1 Qxa2 26. f3 $14) 25. cxb5 {[%emt 0:00:15]} (25. f3 Ne3 26. Bxe3 (26. Qxd4 Nc2 $17) 26... dxe3 $17) 25... axb5 {[%emt 0:00:05]} 26. Rc1 {[%emt 0:00:24]} Qf6 {[%emt 0:00:16]} 27. Nc5 {[%emt 0:02:49]} Qxh4 {[%emt 0:02:51]} 28. Qf3 {[%emt 0:00:50] Hoping for Bg3. Active counter play!} Nxc5 {[%emt 0:01:40]} 29. Rxc5 {[%emt 0:00:02]} Re8 {[%emt 0:00:10]} (29... d3 $11 30. Rxf5 Rxa2) 30. Rd1 $2 {[%emt 0:00:53][%mdl 8192]} (30. Rf1 $1 $16 {is forced if you want to stay better.} Qf6 31. Bg3) 30... Qe7 $1 $19 {[%emt 0:00:21]} ({Don't take} 30... Rxa2 31. Rxf5 (31. Bg3 $2 Qe7 $19) 31... Ra6 32. Rf1 $16 (32. Rxb5 Rae6 $11) (32. Bg3 Qe7 $17)) 31. Rcc1 {[%emt 0:01:02]} Rxa2 {[%emt 0:00:47]} 32. Bg3 {[%emt 0:08:17] [#]} Rxb2 $2 {[%emt 0:03:45]} (32... h4 $1 $19 {[%cal Rh4g3]} 33. Bc7 Qe6) 33. Qxf5 $11 {[%emt 0:00:37]} Re2 {[%emt 0:00:08][%cal Oe2e1] ( -> ...Re1+!)} 34. Rf1 {[%emt 0:00:27] Prevents Re1.} Qe6 {[%emt 0:02:30]} (34... Ne5 $15 35. Qxh5 d3) 35. Qxh5 {[%emt 0:00:27]} Qg6 {[%emt 0:00:37]} 36. Qxb5 {[%emt 0:01:14]} Qh6 {[%emt 0:00:07] [#]} (36... Qe4 $11 {keeps the balance.}) 37. Rc5 $1 $16 {[%emt 0:01:04] Black must now prevent Rg5+.} f6 {[%emt 0:00:13] Prevents Rg5+.} 38. Qc4+ {[%emt 0:00:17]} Kh8 {[%emt 0:00:39]} 39. Qf7 {[%emt 0:01:13] Threatens to win with Rh5. Really sharp!} R2e7 {[%emt 0:01:33]} 40. Qh5 {[%emt 0:01:15]} Re1 {[%emt 0:02:15]} 41. Qxh6+ {[%emt 0:00:16]} ({But not} 41. f3 Rxf1+ 42. Kxf1 Ne3+ 43. Ke2 Qxh5 44. Rxh5+ Kg7 $11) 41... Nxh6 {[%emt 0:00:03]} 42. Rd5 {[%emt 0:00:14]} R1e4 {[%emt 0:00:46]} 43. f3 {[%emt 0:00:49]} Re2 {[%emt 0:00:51]} 44. Bh4 {[%emt 0:00:11]} Kg7 {[%emt 0:01:06]} 45. Rxd4 {[%emt 0:00:52]} Nf5 {[%emt 0:00:22]} 46. Rg4+ {[%emt 0:00:02]} Kf7 {[%emt 0:00:07]} 47. Bf2 {[%emt 0:00:04]} Ne3 {[%emt 0:00:46]} 48. Bxe3 {[%emt 0:00:09]} R8xe3 $11 {[%emt 0:00:04][%mdl 4096] Endgame KRR-KRR} 49. Rc1 {[%emt 0:00:23]} Re1+ {[%emt 0:00:04]} 50. Rxe1 {[%emt 0:00:03]} Rxe1+ {[%emt 0:00:03] KR-KR} 51. Kf2 {[%emt 0:00:07]} Ra1 {[%emt 0:00:05]} 52. Kg3 {[%emt 0:00:03]} Ke6 {[%emt 0:00:03]} 53. Rb4 {[%emt 0:00:08]} Ra2 {[%emt 0:00:14]} 54. Kh3 {[%emt 0:00:16]} Ra3 {[%emt 0:01:38]} 55. Kg4 {[%emt 0:00:07]} Kf7 {[%emt 0:01:40]} 56. f4 {[%emt 0:00:50]} Kg6 {[%emt 0:00:16]} 57. Rb6 {[%emt 0:00:08]} Ra5 {[%emt 0:00:05]} 58. Rb7 {[%emt 0:00:51]} Ra4 {[%emt 0:00:35]} 59. g3 {[%emt 0:00:12]} Ra5 {[%emt 0:00:11]} 60. Rb8 {[%emt 0:00:25]} Ra4 {[%emt 0:00:29]} 61. Rc8 {[%emt 0:00:51]} Ra5 {[%emt 0:00:08]} 62. f5+ {[%emt 0:00:26]} Kg7 {[%emt 0:00:54]} 63. Rc7+ {[%emt 0:00:05]} Kh6 {[%emt 0:00:07] The position is equal.} 64. Rc4 {[%emt 0:00:31]} Ra1 {[%emt 0:00:18]} 65. Rd4 {[%emt 0:01:13]} Rb1 {[%emt 0:00:16]} 66. Rf4 {[%emt 0:00:57]} Ra1 {[%emt 0:00:21]} 67. Kh4 {[%emt 0:01:00]} Rh1+ {[%emt 0:00:06]} 68. Kg4 {[%emt 0:00:02]} Ra1 {[%emt 0:00:05]} 69. Rb4 {[%emt 0:00:23]} Rc1 {[%emt 0:00:09]} 70. Kf4 {[%emt 0:00:25]} Rf1+ {[%emt 0:00:10]} 71. Kg4 {[%emt 0:00:06]} Ra1 {[%emt 0:00:04]} 72. Rc4 {[%emt 0:01:18]} Rb1 {[%emt 0:00:04]} 73. Rd4 {[%emt 0:00:10]} Ra1 {[%emt 0:00:07]} 74. Rc4 {[%emt 0:00:02]} Rb1 {[%emt 0:00:04] Weighted Error Value: White=0.22 (precise) /Black=0.19 (very precise)} 1/2-1/2

[Event "13th KIIT Festival-A 2022"]
[Site "Bhubaneswar"]
[Date "2022.05.24"]
[Round "4.1"]
[White "Amonatov, Farrukh"]
[Black "Laxman, R.R."]
[Result "1-0"]
[ECO "C92"]
[WhiteElo "2622"]
[BlackElo "2420"]
[Annotator "TA"]
[PlyCount "83"]
[EventDate "2022.05.15"]
[EventType "swiss"]
[EventCountry "IND"]
[SourceTitle "playchess.com"]
[Source "ChessBase"]
[SourceQuality "1"]
[TimeControl "5400+30"]

{[%evp 22,83,43,41,38,29,10,31,29,0,-19,0,0,0,0,0,4,10,14,18,11,12,100,83,97,103,120,108,116,111,133,131,133,91,104,98,166,162,173,171,241,253,263,275,268,260,237,159,224,232,218,221,221,237,219,231,318,295,420,408,616,614,596,550]} 1. e4 {[%emt 0:00:30]} e5 {[%emt 0:00:07]} 2. Nf3 {[%emt 0:00:06]} Nc6 {[%emt 0:00:04]} 3. Bb5 {[%emt 0:00:19]} a6 {[%emt 0:00:48]} 4. Ba4 {[%emt 0:00:06]} Nf6 {[%emt 0:00:06]} 5. O-O {[%emt 0:00:06]} Be7 {[%emt 0:00:15]} 6. Re1 {[%emt 0:00:08]} b5 {[%emt 0:00:04]} 7. Bb3 {[%emt 0:00:04]} O-O {[%emt 0:00:11]} 8. h3 {[%emt 0:00:27]} d6 {[%emt 0:02:24]} 9. c3 {[%emt 0:00:29]} a5 {[%emt 0:01:31]} 10. a4 {[%emt 0:05:31]} b4 {[%emt 0:00:10]} 11. d4 {[%emt 0:01:54]} bxc3 {[%emt 0:00:26]} 12. bxc3 {[%emt 0:04:01]} exd4 {[%emt 0:00:09] C92: Closed Ruy Lopez: 9...Be6, Karpov and Flohr-Zaitsev Variations.} 13. cxd4 {[%emt 0:00:04]} d5 {[%emt 0:00:18]} 14. exd5 {[%emt 0:09:17]} Nxd5 {[%emt 0:01:04] White is slightly better.} 15. Bxd5 {[%emt 0:01:45]} (15. Bd2 {feels stronger.}) 15... Qxd5 $11 {[%emt 0:00:03]} 16. Nc3 {[%emt 0:00:07]} Qd8 {[%emt 0:00:15]} 17. Bf4 {[%emt 0:02:35] [#]} Nb4 $146 {[%emt 0:06:49]} ({Predecessor:} 17... Bf5 18. Nb5 Bd6 19. Bxd6 cxd6 20. d5 Nb4 21. Nfd4 Bd7 22. Ne6 fxe6 23. dxe6 Re8 24. exd7 Rxe1+ 25. Qxe1 Qxd7 {½-½ (48) Holmsten,A (2420)-Kotan,L (2350) Cairo 2002}) 18. Rc1 {[%emt 0:01:39][%cal Of4c7]} c6 {[%emt 0:01:40]} 19. Ne5 {[%emt 0:03:56]} Be6 {[%emt 0:05:04] [#]} 20. Nxc6 $1 {[%emt 0:03:48]} Nxc6 {[%emt 0:00:05]} 21. d5 {[%emt 0:00:04][%cal Bd4d5,Bd5c6,Bc6c7][%mdl 32]} Ba3 {[%emt 0:05:26]} ({Much less strong is} 21... g5 22. Bg3 $16) (21... Rc8 $1 $11) 22. dxc6 $16 {[%emt 0:02:31] c7 is the strong threat.} Bxc1 {[%emt 0:00:04]} 23. Qxc1 {[%emt 0:00:10]} Qd4 {[%emt 0:00:45]} 24. Be5 {[%emt 0:07:49][%mdl 1024] White has strong compensation. White is more active.} Qd3 {[%emt 0:06:50]} 25. c7 {[%emt 0:07:30]} f6 {[%emt 0:02:02]} 26. Bg3 {[%emt 0:01:50]} Qc4 {[%emt 0:03:13]} 27. Ne4 {[%emt 0:06:50]} Qxc1 {[%emt 0:02:43]} 28. Rxc1 {[%emt 0:01:00]} f5 {[%emt 0:02:51] [#]} (28... Kf7 $16 {keeps fighting.}) 29. Nd6 $1 $18 {[%emt 0:06:40]} f4 {[%emt 0:00:46]} 30. Bh4 {[%emt 0:00:04]} Ra6 {[%emt 0:00:12]} (30... f3 $142 31. Rb1 fxg2) 31. Be7 {[%emt 0:02:03]} Rfa8 {[%emt 0:00:04]} 32. Rb1 {[%emt 0:01:37] And now Rb8+ would win.} h6 {[%emt 0:00:07]} 33. Rb8+ {[%emt 0:01:59]} Kh7 {[%emt 0:01:50]} 34. h4 {[%emt 0:11:16] Threatens to win with Bf8.} f3 {[%emt 0:08:47]} (34... R8a7 $16 {might work better.}) 35. gxf3 {[%emt 0:00:39]} R8a7 {[%emt 0:00:04]} 36. Nb5 {[%emt 0:19:36]} Rc6 {[%emt 0:00:09] [#]} 37. Bd6 {[%emt 0:00:00]} ({Not} 37. Nxa7 Rxc7 38. Nb5 Rxe7 $14) 37... Raa6 {[%emt 0:00:15]} 38. Be5 {[%emt 0:00:00] Strongly threatening Nd4.} Rc4 {[%emt 0:04:57]} 39. Nd4 {[%emt 0:00:00] Inhibits Rac6.} Bd7 {[%emt 0:05:11]} (39... Kg6 {was called for.} 40. f4 Rxd4) 40. Rd8 {[%emt 0:00:00]} Rg6+ {[%emt 0:00:15]} (40... Bxa4 $142 41. f4 Rc1+ 42. Kh2 Ra7) 41. Kh2 {[%emt 0:00:00]} Be6 {[%emt 0:00:31]} 42. Bg3 {[%emt 0:00:00] Weighted Error Value: White=0.05 (flawless) /Black=0.27 (precise)} 1-0